bitfinex-derivatives/quotes_ETHF0:USTF0_20240913
["timestamp","ask_amount","ask_price","bid_price","bid_amount"]
[1726239896455,2.91279,2371.6,2371.2,0.4217]
[1726239896656,0.42167,2371.4,2371.2,0.4217]
[1726239898447,1.8587,2371.6,2371.0,3.2078]
[1726239898652,0.4217,2371.3,2371.1,0.42172]
[1726239898857,1.05413,2371.5,2370.9,3.71174]
[1726239899160,0.4217,2371.3,2371.0,0.42172]
[1726239899359,0.42171,2371.2,2370.7,7.55228]
[1726239899562,1.1599,2371.1,2371.0,0.42173]
[1726239901154,1.1599,2371.1,2371.0,3.62953]
[1726239901661,1.1599,2371.1,2371.0,0.42173]
[1726239902259,1.1599,2371.1,2370.7,4.26228]
[1726239902460,4.30990838,2371.6,2371.0,6.4978]
[1726239902662,0.5725,2371.7,2371.6,0.42163]
[1726239903164,1.10210838,2372.2,2371.6,7.5068]
[1726239903364,1.10210838,2372.7,2372.3,1.05377]
[1726239903571,1.10210838,2373.5,2372.8,1.05352]
[1726239903754,7.14982838,2373.6,2372.9,3.2078]
[1726239903955,7.14982838,2373.6,2372.8,3.29]
[1726239903956,9.25552,2373.6,2372.8,3.29]
[1726239904153,1.10210838,2373.5,2372.6,3.29]
[1726239904353,0.42134,2373.3,2372.8,6.4978]
[1726239904652,0.4213,2373.5,2373.2,3.29]
[1726239904856,1.7045,2373.6,2373.2,3.71135]
[1726239905057,1.7045,2373.6,2373.2,3.71134]
[1726239905255,1.7045,2373.6,2373.2,3.29]
[1726239905468,2.12578,2373.6,2373.2,3.29]
[1726239905659,2.12578,2373.6,2373.1,3.2078]
[1726239905660,0.42129,2373.5,2373.1,3.2078]
[1726239905862,2.12579,2373.6,2373.1,3.62916]
[1726239906165,1.1423,2373.6,2373.2,3.29]
[1726239906560,0.42129,2373.5,2373.2,3.29]
[1726239906753,0.42131,2373.5,2373.2,3.29]
[1726239907055,0.42132,2373.4,2373.2,3.29]
[1726239907259,0.4213,2373.5,2373.1,3.2078]
[1726239907465,1.56358,2373.6,2373.2,0.42133]
[1726239907859,3.2078,2374.2,2373.5,3.2078]
[1726239908174,0.5687,2374.5,2374.1,3.29]
[1726239908466,0.212,2374.8,2374.1,3.29]
[1726239908467,3.2078,2375.3,2374.5,4.2112]
[1726239908663,3.2078,2375.3,2375.0,0.42101]
[1726239908861,0.5979,2375.5,2374.9,3.29]
[1726239909065,0.5979,2375.5,2375.4,0.42096]
[1726239909270,0.5979,2375.5,2375.3,6.4978]
[1726239909668,0.5979,2375.5,2375.3,3.29]
[1726239909864,0.5979,2375.5,2375.1,3.29]
[1726239910271,0.5979,2375.5,2375.0,3.2078]
[1726239910462,0.5979,2375.5,2374.9,0.42104]
[1726239910658,1.01885,2375.5,2374.9,0.42104]
[1726239910872,3.2078,2375.3,2374.7,3.2078]
[1726239911066,0.42099,2375.2,2374.7,3.62887]
[1726239911267,3.2078,2375.3,2374.4,3.2078]
[1726239911468,3.2078,2374.9,2374.4,3.2078]
[1726239911673,0.5979,2375.5,2373.8,3.2078]
[1726239911674,3.2078,2374.8,2373.8,3.2078]
[1726239911972,0.42114,2374.4,2373.9,0.42121]
[1726239912166,3.2078,2374.5,2373.9,0.42121]
[1726239912365,3.62893,2374.5,2373.9,0.42121]
[1726239912562,0.42116,2374.3,2373.8,3.2078]
[1726239912777,3.62892,2374.5,2373.8,3.2078]
[1726239912966,0.42114,2374.4,2373.9,0.42122]
[1726239913163,3.62893,2374.5,2373.9,0.42122]
[1726239913364,3.62893,2374.5,2374.1,3.2078]
[1726239913365,0.42113,2374.5,2374.1,3.2078]
[1726239913674,0.42112,2374.5,2374.1,3.2078]
[1726239913970,0.42113,2374.5,2374.1,3.2078]
[1726239914173,1.61509,2374.7,2374.2,0.42116]
[1726239914366,0.5936,2374.7,2374.2,0.42117]
[1726239914562,3.2078,2374.9,2374.3,4.04]
[1726239914873,0.42109,2374.7,2374.1,3.2078]
[1726239915076,0.42107,2374.8,2374.3,0.42114]
[1726239915263,0.42107,2374.8,2374.3,0.42115]
[1726239915470,0.42107,2374.8,2374.1,3.2078]
[1726239915471,3.2078,2374.9,2374.1,3.2078]
[1726239915990,0.42112,2374.5,2374.1,3.2078]
[1726239916273,0.42114,2374.4,2373.9,0.42122]
[1726239916465,3.2078,2374.6,2373.9,0.42122]
[1726239916670,0.42114,2374.4,2374.0,0.4212]
[1726239916884,0.42114,2374.4,2373.8,3.2078]
[1726239917070,0.42114,2374.4,2374.0,0.4212]
[1726239917282,0.5467,2374.5,2374.0,0.4212]
[1726239917477,0.5467,2374.5,2373.8,3.2078]
[1726239917478,0.42114,2374.4,2373.8,3.2078]
[1726239917672,0.5467,2374.5,2373.8,3.2078]
[1726239917874,0.42115,2374.4,2373.9,0.42121]
[1726239918075,0.42115,2374.3,2373.9,0.42121]
[1726239918275,0.5467,2374.5,2373.8,3.2078]
[1726239918473,3.2078,2374.3,2373.8,3.2078]
[1726239918679,3.62896,2374.3,2373.9,0.42122]
[1726239918878,0.4212,2374.1,2373.8,3.2078]
[1726239919175,3.2078,2374.3,2373.5,3.2078]
[1726239919381,3.2078,2374.3,2373.5,0.42128]
[1726239919580,1.05297,2374.1,2373.5,3.2078]
[1726239919877,0.42124,2373.8,2373.5,3.2078]
[1726239920082,1.05302,2374.0,2373.5,3.2078]
[1726239920376,0.42118,2374.2,2373.5,3.2078]
[1726239920578,3.62896,2374.3,2373.9,0.42121]
[1726239920879,0.42118,2374.2,2373.8,0.42124]
[1726239921067,0.42121,2374.0,2373.6,4.04]
[1726239921271,0.42119,2374.1,2373.6,4.04]
[1726239921481,3.62896,2374.3,2374.0,0.4212]
[1726239921780,3.2078,2374.3,2374.0,0.42119]
[1726239922082,3.62896,2374.3,2374.0,0.4212]
[1726239922472,3.2078,2374.3,2373.9,0.42121]
[1726239922673,0.42117,2374.2,2373.9,0.42121]
[1726239922875,0.42117,2374.2,2373.6,7.2478]
[1726239923076,0.42117,2374.2,2373.9,0.42122]
[1726239923371,3.62896,2374.3,2373.9,0.42122]
[1726239923687,0.42118,2374.2,2373.9,0.42122]
[1726239923979,0.42122,2373.9,2373.6,3.62907]
[1726239924179,0.42121,2374.0,2373.7,0.42125]
[1726239924976,3.2078,2374.3,2373.6,3.2078]
[1726239925277,1.05286,2374.4,2373.3,3.62912]
[1726239925278,0.42129,2373.6,2373.3,3.62912]
[1726239925477,3.2078,2374.1,2373.3,3.2078]
[1726239925672,0.42123,2373.9,2373.6,3.62907]
[1726239925877,1.05294,2374.2,2373.3,3.2078]
[1726239926088,3.2078,2374.3,2373.6,3.2078]
[1726239926583,3.2078,2374.3,2374.1,0.42117]
[1726239926779,3.2078,2374.3,2374.0,0.42119]
[1726239926982,3.62896,2374.3,2373.9,3.2078]
[1726239927177,3.2078,2374.3,2374.1,0.42119]
[1726239927380,3.2078,2374.3,2374.0,0.42119]
[1726239927576,0.42117,2374.2,2373.9,3.2078]
[1726239927782,3.2078,2374.3,2373.9,3.2078]
[1726239928085,3.2078,2374.3,2374.1,0.42118]
[1726239928284,3.62896,2374.3,2374.0,0.42119]
[1726239928481,3.2078,2374.3,2374.1,0.42118]
[1726239928784,3.2078,2374.3,2373.9,3.2078]
[1726239928973,3.2078,2374.3,2374.0,0.42119]
[1726239929174,3.2078,2374.3,2374.1,0.42118]
[1726239929391,3.2078,2374.3,2373.9,3.2078]
[1726239929581,0.5467,2374.5,2374.4,0.42113]
[1726239929888,0.5467,2374.5,2373.9,3.2078]
[1726239930077,0.96783,2374.5,2373.9,3.2078]
[1726239930277,0.5467,2374.5,2374.2,0.42116]
[1726239930482,0.5467,2374.5,2373.9,3.2078]
[1726239930789,0.5467,2374.5,2374.4,0.42113]
[1726239930987,0.5468,2374.6,2374.5,0.42112]
[1726239931286,0.42104,2375.0,2374.5,3.2078]
[1726239931489,0.5687,2375.1,2374.7,0.42107]
[1726239931490,0.42105,2374.9,2374.7,0.42107]
[1726239931673,0.42105,2374.9,2374.6,0.42109]
[1726239931878,0.5687,2375.1,2374.5,3.2078]
[1726239932075,0.42107,2374.8,2374.5,3.62891]
[1726239932279,1.05257,2375.0,2374.5,3.62891]
[1726239932280,4.26037,2375.0,2374.5,3.2078]
[1726239932492,4.26037,2375.0,2374.1,1.05294]
[1726239932493,0.42107,2374.8,2374.2,3.2078]
[1726239932688,0.42108,2374.7,2374.4,0.42113]
[1726239932988,0.42113,2374.5,2374.2,0.42117]
[1726239933173,0.5459,2374.6,2374.2,3.2078]
[1726239933574,0.5459,2374.6,2374.5,0.42112]
[1726239933775,7.77484,2375.0,2374.2,3.2078]
[1726239933989,3.7537,2375.0,2374.7,0.42106]
[1726239934183,0.42105,2374.9,2374.6,0.42109]
[1726239934387,3.7537,2375.0,2374.4,1.05284]
[1726239934587,3.7537,2375.0,2374.8,0.42105]
[1726239934892,3.7537,2375.0,2374.6,0.42108]
[1726239935192,0.42106,2374.9,2374.7,0.42108]
[1726239935787,0.42106,2374.9,2374.3,4.04]
[1726239935788,0.42106,2374.9,2374.6,0.42109]
[1726239935988,4.80629,2375.0,2374.5,0.42111]
[1726239936381,0.42107,2374.8,2374.6,0.4211]
[1726239936584,4.80629,2375.0,2374.2,3.2078]
[1726239936777,0.42108,2374.8,2374.5,0.4211]
[1726239937089,0.42114,2374.4,2373.9,3.2078]
[1726239937285,0.99935,2374.3,2374.1,0.42117]
[1726239938081,0.5782,2374.3,2374.1,0.42117]
[1726239938179,0.42117,2374.2,2374.0,0.4212]
[1726239938386,0.5782,2374.3,2373.9,3.2078]
[1726239938884,1.05297,2374.1,2373.7,4.04]
[1726239939084,0.42124,2373.8,2373.7,4.04]
[1726239939286,0.42125,2373.8,2373.6,0.42126]
[1726239939690,0.42123,2373.9,2373.7,0.42126]
[1726239939889,0.9947,2374.0,2373.5,4.26103]
[1726239940192,0.5735,2374.0,2373.5,4.26103]
[1726239940394,0.5735,2374.0,2373.9,0.42122]
[1726239940588,0.5735,2374.0,2373.5,4.26103]
[1726239940787,0.5735,2374.0,2373.9,0.42122]
[1726239940990,1.55956,2374.3,2373.8,1.05309]
[1726239941297,1.55956,2374.3,2374.1,0.42118]
[1726239941791,1.1384,2374.3,2374.2,0.42117]
[1726239942183,1.55956,2374.3,2374.1,0.42119]
[1726239942584,0.42118,2374.2,2374.0,0.4212]
[1726239943386,0.42118,2374.2,2373.9,0.42121]
[1726239943387,0.42119,2374.1,2373.9,0.42121]
[1726239943694,1.05293,2374.2,2373.7,3.2078]
[1726239943889,1.05293,2374.2,2373.5,5.09322]
[1726239943890,0.4212,2374.1,2373.8,0.42123]
[1726239944098,0.42119,2374.1,2373.9,0.42122]
[1726239944282,1.05297,2374.1,2373.5,4.04]
[1726239944488,0.42122,2373.9,2373.7,0.42124]
[1726239944693,0.5531,2374.0,2373.6,0.42126]
[1726239944694,0.42124,2373.8,2373.6,0.42126]
[1726239944893,0.5531,2374.0,2373.4,4.26108]
[1726239944894,0.42126,2373.7,2373.5,0.42128]
[1726239945185,0.42126,2373.7,2373.6,0.42127]
[1726239945186,0.589,2373.7,2373.6,0.42127]
[1726239945901,0.589,2373.7,2373.4,3.2078]
[1726239945902,1.01026,2373.7,2373.4,3.2078]
[1726239946191,1.01026,2373.7,2373.5,0.42128]
[1726239946591,0.589,2373.7,2373.6,0.42127]
[1726239946793,1.01026,2373.7,2373.5,0.42128]
[1726239947095,1.01026,2373.7,2373.2,0.42134]
[1726239947096,0.42132,2373.4,2373.2,0.42134]
[1726239947298,0.4213,2373.5,2373.3,3.62913]
[1726239947501,0.4213,2373.5,2373.3,0.42133]
[1726239947887,0.4213,2373.5,2373.3,0.42132]
[1726239948196,1.1842,2373.7,2373.1,4.198]
[1726239948390,1.1842,2373.7,2373.4,0.42131]
[1726239948391,0.42129,2373.6,2373.4,0.42131]
[1726239948794,0.42129,2373.5,2373.3,3.62912]
[1726239948998,0.42129,2373.5,2373.4,0.42131]
[1726239949200,0.42131,2373.4,2373.3,3.62911]
[1726239949396,0.4213,2373.5,2373.3,0.42132]
[1726239949593,0.42131,2373.4,2373.3,0.42132]
[1726239950200,1.10210838,2373.6,2373.3,4.2136]
[1726239950501,1.52339838,2373.6,2373.5,0.42129]
[1726239951098,0.4213,2373.5,2373.4,0.4213]
[1726239951295,1.52127366,2373.5,2373.4,0.4213]
[1726239951896,0.42133,2373.3,2373.2,0.42133]
[1726239952197,1.52128366,2373.5,2373.4,0.42131]
[1726239952400,1.09997366,2373.5,2373.0,3.2078]
[1726239952610,1.09997366,2373.5,2373.3,0.42132]
[1726239952611,0.42132,2373.4,2373.3,0.42132]
[1726239952900,0.97421,2373.5,2373.4,0.42131]
[1726239953305,1.10012742,2373.6,2373.5,0.42129]
[1726239953504,1.52139742,2373.6,2373.5,0.42129]
[1726239953695,1.52153544,2373.6,2373.5,0.42129]
[1726239954004,1.52153563,2373.6,2373.5,0.42129]
[1726239954197,0.42127,2373.6,2373.5,0.42129]
[1726239954390,1.52142196,2373.6,2373.5,0.42129]
[1726239954911,1.10015196,2373.6,2373.5,0.42129]
[1726239955004,2.70562196,2373.7,2373.5,0.42129]
[1726239955307,2.70562196,2373.7,2373.6,0.42127]
[1726239955495,2.22900408,2373.7,2373.6,0.42127]
[1726239955798,1.68950847,2373.7,2373.6,0.42127]
[1726239956404,2.11076847,2373.7,2373.6,0.42127]
[1726239956591,0.42129,2373.6,2373.5,0.42128]
[1726239956791,1.52179847,2373.6,2373.5,0.42128]
[1726239957400,1.10050847,2373.6,2373.5,0.42128]
[1726239957701,2.11076847,2373.7,2373.6,0.42127]
[1726239958005,2.65026408,2373.7,2373.6,0.42127]
[1726239958192,2.65026408,2373.7,2373.5,0.42128]
[1726239958193,0.42129,2373.6,2373.5,0.42128]
[1726239958398,1.52239767,2373.6,2373.5,0.42128]
[1726239958608,1.52239767,2373.6,2373.5,0.42129]
[1726239958993,1.10110767,2373.6,2373.5,0.42129]
[1726239959801,1.52237767,2373.6,2373.5,0.42129]
[1726239960006,2.06127408,2373.6,2373.5,0.42129]
[1726239960201,2.09490528,2373.6,2373.5,0.42129]
[1726239960445,2.21250408,2373.6,2373.5,0.42129]
[1726239960600,0.5725,2373.6,2373.5,0.42129]
[1726239960800,1.67361413,2373.6,2373.5,0.42129]
[1726239961408,1.10111413,2373.6,2373.5,0.42129]
[1726239962107,1.69011413,2373.7,2373.6,1.47446]
[1726239962356,1.69011413,2373.7,2373.6,3.62907]
[1726239962510,1.69011413,2373.7,2373.6,0.42127]
[1726239963015,2.11137413,2373.7,2373.6,0.42127]
[1726239963201,1.69011413,2373.7,2373.6,0.42127]
[1726239963404,1.10111413,2373.8,2373.7,1.47441]
[1726239963600,1.10111413,2373.8,2373.7,0.42126]
[1726239963812,2.06124408,2373.8,2373.7,0.42126]
[1726239964613,1.64000408,2373.8,2373.7,0.42126]
[1726239965012,3.17640227,2374.0,2373.9,0.42122]
[1726239965318,3.19635246,2374.0,2373.9,0.42122]
[1726239965928,2.20274246,2374.0,2373.9,1.47428]
[1726239966174,0.568,2374.1,2374.0,1.47422]
[1726239966175,2.77074246,2374.1,2374.0,1.47422]
[1726239966420,2.21981792,2374.1,2374.0,1.47422]
[1726239966617,2.21981792,2374.1,2374.0,0.4212]
[1726239966809,0.568,2374.1,2374.0,1.47422]
[1726239967024,2.21981044,2374.1,2374.0,0.4212]
[1726239967220,2.21981044,2374.1,2374.0,1.47422]
[1726239967521,1.65181044,2374.1,2374.0,2.52724]
[1726239967708,2.72560205,2374.4,2374.1,4.63308]
[1726239967709,1.10113198,2374.2,2374.1,4.63308]
[1726239968018,2.07295044,2374.4,2374.3,0.42115]
[1726239968210,0.42117,2374.3,2374.2,0.42116]
[1726239968407,1.52219428,2374.3,2374.2,0.42116]
[1726239968612,1.10102428,2374.3,2374.2,0.42116]
[1726239968910,1.10102428,2374.3,2374.2,4.68189]
[1726239969213,1.10102428,2374.5,2374.4,0.42113]
[1726239969514,1.10102428,2374.5,2374.4,1.47397]
[1726239969720,1.10102428,2374.5,2374.4,4.76397]
[1726239970218,1.10102428,2374.5,2374.4,5.68517]
[1726239970408,1.10102428,2374.5,2374.4,0.42113]
[1726239970917,2.07293044,2374.5,2374.4,0.42113]
[1726239971314,1.65181044,2374.5,2374.4,0.42113]
[1726239971715,1.10059666,2374.5,2374.4,1.47397]
[1726239971924,1.68019666,2374.6,2374.5,0.42112]
[1726239972228,2.65251044,2374.6,2374.5,0.42112]
[1726239972720,2.23141044,2374.6,2374.5,0.42112]
[1726239972921,1.67997228,2374.6,2374.5,0.42112]
[1726239973108,2.23141044,2374.6,2374.5,0.42112]
[1726239973713,1.10029035,2374.6,2374.5,0.42112]
[1726239973914,1.10029035,2374.7,2374.6,0.4211]
[1726239974222,1.10029035,2374.8,2374.7,0.42108]
[1726239974733,1.09987024,2374.9,2374.8,0.42106]
[1726239974927,1.0998363,2375.0,2374.9,1.47366]
[1726239975222,2.20274246,2375.3,2374.9,1.47366]
[1726239975223,1.0998363,2375.3,2375.2,0.42099]
[1726239975413,0.42097,2375.3,2375.2,0.42099]
[1726239975613,1.5208063,2375.3,2375.2,0.42099]
[1726239975822,1.0998363,2375.3,2375.2,0.42099]
[1726239976120,5.7312163,2375.3,2374.8,3.2078]
[1726239976311,5.7312163,2375.3,2374.7,1.05271]
[1726239976312,0.42102,2375.1,2374.7,1.05271]
[1726239976514,2.1523263,2375.2,2374.9,0.42103]
[1726239976824,2.1523263,2375.2,2374.5,4.26059]
[1726239976825,0.42104,2375.0,2374.5,4.26059]
[1726239977125,1.5208563,2375.1,2375.0,0.42103]
[1726239977314,0.42103,2375.0,2374.9,0.42103]
[1726239977519,1.0998363,2375.2,2375.0,0.42103]
[1726239977520,1.5208463,2375.1,2375.0,0.42103]
[1726239978126,1.0998363,2375.1,2375.0,0.42103]
[1726239978620,1.5208563,2375.1,2374.6,1.05275]
[1726239978812,0.5635,2375.0,2374.9,0.42104]
[1726239979013,0.98453,2375.0,2374.8,0.42105]
[1726239979217,0.5913,2374.9,2374.8,0.42105]
[1726239980216,0.5913,2374.9,2374.8,3.62885]
[1726239980419,0.5635,2375.0,2374.9,0.42104]
[1726239981423,0.5815,2375.3,2375.2,0.42099]
[1726239982130,1.0998363,2375.8,2375.7,0.4209]
[1726239982624,1.0998363,2375.9,2375.8,0.42088]
[1726239982826,3.2775963,2376.0,2375.9,0.42087]
[1726239983223,2.8567363,2376.0,2375.9,0.42087]
[1726239983424,3.2775863,2376.0,2375.6,1.0523]
[1726239983625,2.17775,2376.0,2375.6,1.0523]
[1726239983931,2.8567363,2376.0,2375.4,4.26017]
[1726239984125,0.42088,2375.9,2375.7,0.4209]
[1726239984321,1.05218,2375.9,2375.2,1.05247]
[1726239984726,0.4209,2375.8,2375.6,0.42092]
[1726239984934,0.42091,2375.7,2375.5,0.42093]
[1726239985329,0.4209,2375.8,2375.5,0.42093]
[1726239985630,0.4209,2375.8,2375.6,0.42092]
[1726239985831,1.05218,2375.9,2375.5,0.42093]
[1726239986034,0.42091,2375.7,2375.5,0.42093]
[1726239986424,1.05218,2375.9,2375.2,1.05247]
[1726239986624,0.42091,2375.7,2375.5,0.42093]
[1726239986822,0.4209,2375.8,2375.5,0.42093]
[1726239987025,0.42088,2375.8,2375.5,0.42093]
[1726239987254,0.42091,2375.7,2375.5,0.42093]
[1726239987437,0.42091,2375.7,2375.5,3.2078]
[1726239987631,0.4209,2375.8,2375.6,0.42091]
[1726239987833,6.01684,2376.0,2375.2,4.26027]
[1726239988032,0.42089,2375.8,2375.6,0.42092]
[1726239988227,0.4209,2375.7,2375.5,0.42093]
[1726239988435,0.4209,2375.8,2375.6,0.42092]
[1726239989637,0.42087,2375.9,2375.7,0.4209]
[1726239989836,1.05222,2375.8,2375.5,3.2078]
[1726239990034,0.42091,2375.7,2375.5,3.62873]
[1726239990224,0.42092,2375.6,2375.4,0.42095]
[1726239990428,1.05222,2375.8,2375.5,0.42094]
[1726239990429,0.42092,2375.7,2375.5,0.42094]
[1726239990640,0.4209,2375.8,2375.6,0.42092]
[1726239990947,0.42088,2375.9,2375.7,0.4209]
[1726239991131,0.42088,2375.8,2375.6,0.42091]
[1726239991333,4.25998,2375.9,2375.4,3.2078]
[1726239991636,3.28,2375.8,2375.1,3.28]
[1726239991831,4.33226,2375.8,2375.3,0.42096]
[1726239992035,3.28,2375.8,2375.1,4.33252]
[1726239992341,0.42091,2375.7,2375.5,0.42093]
[1726239992541,0.42089,2375.8,2375.6,0.42091]
[1726239992832,1.7569,2376.0,2375.5,3.2078]
[1726239993237,2.17776,2376.0,2375.8,0.42088]
[1726239993433,1.7569,2376.0,2375.9,0.42087]
[1726239993734,0.5768,2376.0,2375.9,0.42087]
[1726239993930,2.72560205,2376.5,2376.0,0.42085]
[1726239994128,0.94891125,2376.5,2376.4,3.70078]
[1726239994558,0.94891125,2376.5,2376.4,0.42078]
[1726239994833,0.94891125,2376.5,2376.2,3.2078]
[1726239995539,0.94891125,2376.5,2376.4,0.42078]
[1726239995741,0.94891125,2376.5,2376.2,3.2078]
[1726239996038,4.33191,2376.5,2375.8,3.28]
[1726239996235,4.25971,2376.5,2375.9,3.2078]
[1726239996426,0.4208,2376.3,2376.1,0.42083]
[1726239996838,4.25971,2376.5,2375.9,3.2078]
[1726239997027,0.42087,2375.9,2375.7,0.42089]
[1726239997235,0.6005,2375.8,2375.7,0.42089]
[1726239997740,2.23207,2376.4,2375.6,3.2078]
[1726239997941,0.6005,2376.3,2376.1,0.42082]
[1726239998145,1.0213,2376.3,2376.1,0.42082]
[1726239998339,0.42081,2376.2,2376.0,0.42084]
[1726239998639,0.6005,2376.3,2375.9,3.2078]
[1726239999050,0.42089,2375.8,2375.6,3.62871]
[1726239999338,0.575,2375.7,2375.6,3.62871]
[1726239999735,0.575,2375.7,2375.6,7.83831]
[1726239999935,0.42087,2375.9,2375.6,11.4574]
[1726240000136,0.42087,2375.9,2375.8,0.42088]
[1726240000329,0.42086,2376.0,2375.8,0.42088]
[1726240000532,0.42088,2375.9,2375.8,0.42088]
[1726240001339,0.575,2376.1,2376.0,0.42085]
[1726240001546,0.42082,2376.2,2376.1,0.42083]
[1726240001844,1.02201,2376.3,2376.2,0.42081]
[1726240002435,0.42082,2376.2,2376.1,0.42081]
[1726240002631,1.02201,2376.3,2376.2,0.42081]
[1726240002842,0.42082,2376.2,2376.1,0.42083]
[1726240003447,4.22981,2376.3,2376.2,0.42081]
[1726240003644,1.02201,2376.3,2376.2,0.42081]
[1726240003947,0.6012,2376.3,2376.2,0.42081]
[1726240004143,0.6012,2376.3,2375.8,4.04]
[1726240004343,0.6012,2376.3,2375.7,3.2078]
[1726240004541,0.6012,2376.3,2375.8,1.05222]
[1726240004736,0.6012,2376.3,2376.2,0.42081]
[1726240006046,1.022,2376.3,2376.2,0.42081]
[1726240006254,0.6012,2376.3,2376.2,0.42081]
[1726240006443,1.61294,2376.7,2376.5,0.42075]
[1726240006444,0.99144,2376.6,2376.5,0.42075]
[1726240006641,0.5707,2376.6,2376.5,0.42075]
[1726240007264,0.42071,2376.8,2376.7,0.42073]
[1726240007554,0.42074,2376.7,2376.6,0.42074]
[1726240007761,0.42073,2376.8,2376.7,0.42072]
[1726240008060,0.42073,2376.7,2376.6,0.42073]
[1726240008262,0.42072,2376.8,2376.7,0.42072]
[1726240008566,0.4208,2376.3,2376.2,0.42081]
[1726240008972,4.25959,2376.8,2376.0,1.05213]
[1726240009159,3.2078,2376.8,2375.9,5.09217]
[1726240009360,1.05187,2376.6,2376.3,0.42079]
[1726240009564,3.2078,2376.5,2376.0,1.05213]
[1726240009762,0.42081,2376.3,2375.9,4.04]
[1726240010060,0.5699,2376.4,2375.9,4.04]
[1726240010261,0.5699,2376.4,2375.7,4.04]
[1726240010262,1.05201,2376.3,2375.7,4.04]
[1726240010758,3.2078,2376.1,2375.7,4.04]
[1726240010959,0.42087,2375.9,2375.7,4.4609]
[1726240011157,0.42086,2376.0,2375.7,4.04]
[1726240011354,4.82967,2376.4,2375.7,4.46089]
[1726240011355,0.42087,2375.9,2375.7,4.46089]
[1726240011752,0.42086,2376.0,2375.7,4.04]
[1726240011948,0.42086,2376.0,2375.8,0.42088]
[1726240012258,1.05236,2375.5,2374.8,0.212]
[1726240012461,0.42102,2375.1,2374.8,1.02045]
[1726240012761,0.5756,2375.4,2374.6,3.62889]
[1726240012762,0.42106,2374.9,2374.6,3.62889]
[1726240013164,1.05253,2375.1,2374.3,8.401]
[1726240013355,3.2078,2375.3,2374.5,0.42111]
[1726240013356,0.42107,2374.8,2374.5,0.42111]
[1726240013550,0.42106,2374.9,2374.6,0.42109]
[1726240013752,1.05245,2375.3,2374.3,8.401]
[1726240013753,1.05257,2375.0,2374.4,0.42112]
[1726240013949,4.26037,2375.0,2374.3,4.361]
[1726240014161,0.42109,2374.7,2374.4,0.42112]
[1726240014356,0.5782,2374.9,2374.3,4.361]
[1726240014357,1.05266,2374.8,2374.3,4.361]
[1726240014661,0.42113,2374.5,2374.0,3.2078]
[1726240014864,0.42113,2374.5,2374.1,0.42118]
[1726240015163,0.42113,2374.5,2374.2,0.42117]
[1726240015361,5.41806,2374.8,2374.2,0.42117]
[1726240015362,0.42111,2374.6,2374.2,0.42117]
[1726240015558,5.41806,2374.8,2374.2,0.42117]
[1726240015559,3.62892,2374.5,2374.2,0.42117]
[1726240015863,0.42112,2374.5,2374.2,0.42117]
[1726240016262,0.42113,2374.4,2374.1,0.42118]
[1726240016771,2.21026,2374.8,2373.9,0.6005]
[1726240016971,0.42112,2374.5,2373.9,0.6005]
[1726240017163,0.42113,2374.4,2374.0,3.2078]
[1726240017364,0.42113,2374.4,2374.1,0.42118]
[1726240017867,0.42113,2374.5,2374.1,0.42118]
[1726240018369,0.42112,2374.5,2374.1,0.42118]
[1726240019168,0.42112,2374.5,2374.2,0.42117]
[1726240019369,0.42114,2374.4,2374.1,0.42118]
[1726240019558,0.42116,2374.3,2374.0,3.629]
[1726240019863,0.42116,2374.3,2374.0,0.4212]
[1726240020457,0.42115,2374.4,2374.1,0.42118]
[1726240020665,0.42113,2374.5,2374.2,0.42116]
[1726240020870,0.42113,2374.4,2374.2,0.42116]
[1726240021165,0.42117,2374.2,2373.9,0.42121]
[1726240021463,0.42117,2374.2,2373.8,4.04]
[1726240021464,0.42121,2374.0,2373.7,0.42124]
[1726240021662,3.2078,2374.2,2373.3,3.2078]
[1726240021663,3.2078,2373.9,2373.3,3.2078]
[1726240021856,0.42124,2373.8,2373.3,3.2078]
[1726240022055,2.2165,2374.1,2373.6,0.42127]
[1726240022258,2.2165,2374.1,2373.5,0.42128]
[1726240022259,0.42126,2373.7,2373.5,0.42128]
[1726240022458,0.42125,2373.8,2373.6,0.42127]
[1726240022664,0.42127,2373.7,2373.5,0.42128]
[1726240022863,4.26082,2374.0,2373.3,3.2078]
[1726240022864,0.42125,2373.8,2373.6,0.42127]
[1726240023065,1.1635,2374.1,2373.3,4.2611]
[1726240023262,1.1635,2374.1,2373.3,3.2078]
[1726240023263,0.42127,2373.7,2373.3,3.2078]
[1726240023566,0.42131,2373.4,2373.3,3.2078]
[1726240023770,0.4213,2373.5,2373.3,0.42132]
[1726240024067,1.05313,2373.8,2373.2,0.42133]
[1726240024068,1.05319,2373.6,2373.2,0.42133]
[1726240024266,0.42134,2373.3,2373.1,0.42135]
[1726240024671,0.5853,2373.5,2372.7,5.63337563]
[1726240024876,0.42137,2373.1,2372.9,0.42139]
[1726240025165,3.2078,2373.1,2372.3,3.54610016]
[1726240025366,3.2078,2373.1,2372.2,0.5562]
[1726240025367,1.61196,2373.0,2372.2,0.5562]
[1726240025690,3.2078,2372.6,2371.7,0.212]
[1726240025973,0.5603,2372.9,2371.2,1.3436]
[1726240025974,3.2078,2372.3,2371.2,1.3436]
[1726240026166,3.2078,2372.3,2371.0,3.7907]
[1726240026167,0.42163,2371.7,2371.0,7.2478]
[1726240026360,0.42159,2371.9,2371.3,3.2078]
[1726240026564,0.42161,2371.8,2371.1,0.42171]